[Event "7th Leer Open-A 2024"]
[Site "Leer"]
[Date "2024.10.31"]
[Round "1.57"]
[White "Tymura, Achim"]
[Black "Moeller, Tom"]
[Result "1-0"]
[ECO "D31"]
[WhiteElo "2035"]
[BlackElo "1812"]
[Annotator "RC"]
[PlyCount "143"]
[EventDate "2024.10.14"]
[EventType "swiss"]
[EventCountry "GER"]
[SourceTitle "playchess.com"]
[Source "ChessBase"]
[SourceQuality "1"]
[TimeControl "40/5400+30:900+30"]

1. Nf3 {[%emt 0:00:16]} d5 {[%emt 0:00:26]} 2. c4 {[%emt 0:00:45]} c6 {[%emt 0:00:16]} 3. d4 {[%emt 0:02:28]} e6 {[%emt 0:00:12]} 4. cxd5 {[%emt 0:00:39]} exd5 {[%emt 0:00:11]} 5. Nc3 {[%emt 0:00:10]} Bd6 {[%emt 0:01:33]} 6. Bg5 {[%emt 0:01:13]} Qb6 {[%emt 0:07:18]} 7. Qd2 {[%emt 0:02:25]} f5 {[%emt 0:02:34]} 8. e3 {[%emt 0:03:44]} Nd7 {[%emt 0:04:02]} 9. Bd3 {[%emt 0:00:44]} Ndf6 {[%emt 0:01:41]} 10. Qc2 {[%emt 0:09:41]} Ne4 {[%emt 0:02:01]} 11. Bxe4 {[%emt 0:04:28]} fxe4 {[%emt 0:00:24]} 12. Nd2 {[%emt 0:01:35]} Ne7 {[%emt 0:00:31]} 13. Bh4 {[%emt 0:02:23]} Nf5 {[%emt 0:02:21]} 14. Bg3 {[%emt 0:00:14]} Nxg3 {[%emt 0:00:21]} 15. hxg3 {[%emt 0:00:05]} Bg4 {[%emt 0:00:21]} 16. Ncxe4 {[%emt 0:06:39]} Bc7 {[%emt 0:07:26]} 17. Ng5 {[%emt 0:16:02]} Qb5 {[%emt 0:03:24]} 18. Ngf3 {[%emt 0:03:33]} O-O-O {[%emt 0:05:31]} 19. O-O-O {[%emt 0:03:03]} Rhf8 {[%emt 0:02:59]} 20. Rdf1 {[%emt 0:06:59]} Bf5 {[%emt 0:03:58]} 21. Qb3 {[%emt 0:08:01]} Qe2 {[%emt 0:01:03]} 22. Nb1 {[%emt 0:11:04]} Bd3 {[%emt 0:02:25]} 23. Re1 {[%emt 0:04:04]} Qxf2 {[%emt 0:01:17]} 24. Qxd3 {[%emt 0:00:08]} Qxg2 {[%emt 0:00:13]} 25. Nfd2 {[%emt 0:02:42]} Bxg3 {[%emt 0:01:29]} 26. Reg1 {[%emt 0:02:37]} Qf2 {[%emt 0:01:23]} 27. Nc3 {[%emt 0:00:35]} Bh4 {[%emt 0:05:35]} 28. Nd1 {[%emt 0:01:49]} Qf6 {[%emt 0:00:10]} 29. Rf1 {[%emt 0:00:40]} Qe7 {[%emt 0:00:22]} 30. Qxh7 {[%emt 0:00:54]} Bf6 {[%emt 0:00:28]} 31. Qh3+ {[%emt 0:01:20]} Kb8 {[%emt 0:00:17]} 32. Rf3 {[%emt 0:00:36]} c5 {[%emt 0:02:01]} 33. Nb3 {[%emt 0:02:10]} cxd4 {[%emt 0:02:19]} 34. Nxd4 {[%emt 0:00:25]} Qc5+ {[%emt 0:00:53]} 35. Nc3 {[%emt 0:01:50]} Bxd4 {[%emt 0:01:16]} 36. exd4 {[%emt 0:00:50]} Qxd4 {[%emt 0:00:06]} 37. Rd1 {[%emt 0:00:33]} Qc4 {[%emt 0:03:07]} 38. Rxf8 {[%emt 0:00:38]} Rxf8 {[%emt 0:00:08]} 39. Qg3+ {[%emt 0:00:34]} Ka8 {[%emt 0:00:23]} 40. Qxg7 {[%emt 0:00:15]} Qf4+ {[%emt 0:00:07]} 41. Kb1 {[%emt 0:15:27]} Qf5+ {[%emt 0:15:59]} 42. Ka1 {[%emt 0:00:29]} Rc8 {[%emt 0:02:13]} 43. a3 {[%emt 0:01:36]} Rd8 {[%emt 0:02:00]} 44. Qd4 {[%emt 0:00:00]} a6 {[%emt 0:00:00]} 45. Nxd5 {[%emt 0:00:00]} Kb8 {[%emt 0:00:00]} 46. Qc4 {[%emt 0:00:00]} Qf7 {[%emt 0:00:00]} 47. Rd3 {[%emt 0:00:00]} Rf8 {[%emt 0:00:00]} 48. Rc3 {[%emt 0:00:00]} Qf1+ {[%emt 0:00:00]} 49. Qxf1 {[%emt 0:00:00]} Rxf1+ {[%emt 0:00:00]} 50. Ka2 {[%emt 0:00:00]} Rf5 {[%emt 0:00:00]} 51. Nb4 {[%emt 0:00:00]} Rh5 {[%emt 0:00:00]} 52. Nd3 {[%emt 0:00:00]} Rg5 {[%emt 0:00:00]} 53. Rc5 {[%emt 0:00:00]} Rg4 {[%emt 0:00:00]} 54. Ne5 {[%emt 0:00:00]} Rd4 {[%emt 0:00:00]} 55. Kb3 {[%emt 0:00:00]} Rd6 {[%emt 0:00:00]} 56. Kc4 {[%emt 0:00:00]} b5+ {[%emt 0:00:00]} 57. Kc3 {[%emt 0:00:00]} Kb7 {[%emt 0:00:00]} 58. b4 {[%emt 0:00:00]} Rh6 {[%emt 0:00:00]} 59. Nd3 {[%emt 0:00:03]} Rh3 {[%emt 0:00:00]} 60. Re5 {[%emt 0:00:56]} Kb6 {[%emt 0:00:00]} 61. Re6+ {[%emt 0:00:34]} Ka7 {[%emt 0:00:00]} 62. Kd4 {[%emt 0:01:19]} Rh4+ {[%emt 0:00:00]} 63. Kd5 {[%emt 0:01:46]} Rh3 {[%emt 0:00:00]} 64. Nc5 {[%emt 0:02:10]} Rxa3 {[%emt 0:00:00]} 65. Re7+ {[%emt 0:00:13]} Ka8 {[%emt 0:02:37]} 66. Kc6 {[%emt 0:00:10]} Rh3 {[%emt 0:01:30]} 67. Kb6 {[%emt 0:01:34]} Rh6+ {[%emt 0:01:05]} 68. Ne6 {[%emt 0:00:37]} Rh8 {[%emt 0:00:08]} 69. Re8+ {[%emt 0:01:12]} Rxe8 {[%emt 0:00:07]} 70. Nc7+ {[%emt 0:00:02]} Kb8 {[%emt 0:00:08]} 71. Nxe8 {[%emt 0:00:05]} a5 {[%emt 0:00:03]} 72. Kxa5 {[%emt 0:00:15]} 1-0

[Event "7th Leer Open-A 2024"]
[Site "Leer"]
[Date "2024.10.31"]
[Round "1.58"]
[White "Koerber, Uwe"]
[Black "Langenberg, Magnus"]
[Result "0-1"]
[ECO "B23"]
[WhiteElo "1807"]
[BlackElo "2026"]
[Annotator "RC"]
[PlyCount "68"]
[EventDate "2024.10.14"]
[EventType "swiss"]
[EventCountry "GER"]
[SourceTitle "playchess.com"]
[Source "ChessBase"]
[SourceQuality "1"]
[TimeControl "40/5400+30:900+30"]

1. e4 {[%emt 0:00:06]} c5 {[%emt 0:00:27]} 2. Nc3 {[%emt 0:00:24]} Nc6 {[%emt 0:00:16]} 3. f4 {[%emt 0:00:32]} g6 {[%emt 0:00:20]} 4. Bc4 {[%emt 0:02:13]} Bg7 {[%emt 0:01:24]} 5. Nf3 {[%emt 0:04:24]} e6 {[%emt 0:00:18]} 6. Qe2 {[%emt 0:02:25]} a6 {[%emt 0:03:54]} 7. a4 {[%emt 0:01:33]} Nd4 {[%emt 0:00:27]} 8. Nxd4 {[%emt 0:01:28]} cxd4 {[%emt 0:00:14]} 9. Nd1 {[%emt 0:00:41]} Ne7 {[%emt 0:00:57]} 10. Bb3 {[%emt 0:09:30]} d5 {[%emt 0:08:26]} 11. d3 {[%emt 0:00:59]} O-O {[%emt 0:00:42]} 12. O-O {[%emt 0:00:44]} b6 {[%emt 0:01:18]} 13. Bd2 {[%emt 0:02:46]} a5 {[%emt 0:06:01]} 14. Rf3 {[%emt 0:04:00]} dxe4 {[%emt 0:01:54]} 15. dxe4 {[%emt 0:02:24]} Bb7 {[%emt 0:01:29]} 16. Nf2 {[%emt 0:02:43]} Rc8 {[%emt 0:02:25]} 17. Re1 {[%emt 0:05:35]} Qd7 {[%emt 0:02:30]} 18. Kh1 {[%emt 0:01:25]} Bc6 {[%emt 0:00:24]} 19. Ra1 {[%emt 0:06:22]} b5 {[%emt 0:11:31]} 20. Bxa5 {[%emt 0:01:36]} bxa4 {[%emt 0:00:10]} 21. Bc4 {[%emt 0:02:03]} Rb8 {[%emt 0:00:39]} 22. Nd3 {[%emt 0:03:37]} Qb7 {[%emt 0:05:49]} 23. Rff1 {[%emt 0:02:14]} Bxe4 {[%emt 0:12:12]} 24. Nc5 {[%emt 0:03:32]} Qa7 {[%emt 0:00:41]} 25. b4 {[%emt 0:16:20]} axb3 {[%emt 0:05:59]} 26. Nxe4 {[%emt 0:05:55]} b2 {[%emt 0:00:49]} 27. Rab1 {[%emt 0:06:05]} Qxa5 {[%emt 0:00:08]} 28. g4 {[%emt 0:01:19]} Nd5 {[%emt 0:03:56]} 29. h4 {[%emt 0:04:15]} Ne3 {[%emt 0:00:15]} 30. Rg1 {[%emt 0:00:47]} Qc7 {[%emt 0:00:34]} 31. Bb3 {[%emt 0:03:22]} Qxf4 {[%emt 0:00:09]} 32. Nc5 {[%emt 0:00:17]} Rfc8 {[%emt 0:05:10]} 33. Nd3 {[%emt 0:01:27]} Qe4+ {[%emt 0:00:17]} 34. Kh2 {[%emt 0:00:22]} Rxb3 {[%emt 0:00:02]} 0-1

[Event "7th Leer Open-A 2024"]
[Site "Leer"]
[Date "2024.10.31"]
[Round "2.1"]
[White "Pahl, Theis"]
[Black "Kopylov, Michael"]
[Result "0-1"]
[ECO "A10"]
[WhiteElo "2101"]
[BlackElo "2340"]
[Annotator "RC"]
[PlyCount "56"]
[EventDate "2024.10.14"]
[EventType "swiss"]
[EventCountry "GER"]
[SourceTitle "playchess.com"]
[Source "ChessBase"]
[SourceQuality "1"]
[TimeControl "40/5400+30:900+30"]

1. c4 {[%emt 0:00:02]} f5 {[%emt 0:08:30]} 2. g3 {[%emt 0:00:23]} Nf6 {[%emt 0:00:05]} 3. Bg2 {[%emt 0:00:05]} g6 {[%emt 0:00:02]} 4. Nc3 {[%emt 0:04:20]} Nc6 {[%emt 0:00:14]} 5. d3 {[%emt 0:00:59]} Bg7 {[%emt 0:00:14]} 6. e3 {[%emt 0:01:32]} O-O {[%emt 0:00:40]} 7. Rb1 {[%emt 0:01:18]} e5 {[%emt 0:01:10]} 8. b4 {[%emt 0:01:13]} Ne7 {[%emt 0:01:56]} 9. Nf3 {[%emt 0:05:28]} d6 {[%emt 0:05:24]} 10. O-O {[%emt 0:00:21]} h6 {[%emt 0:00:18]} 11. Qc2 {[%emt 0:06:50]} g5 {[%emt 0:02:54]} 12. h3 {[%emt 0:05:20]} Be6 {[%emt 0:03:51]} 13. Rd1 {[%emt 0:20:19]} Ng6 {[%emt 0:06:43]} 14. b5 {[%emt 0:04:23]} Qd7 {[%emt 0:07:53]} 15. Kh2 {[%emt 0:01:21]} Rab8 {[%emt 0:05:57]} 16. Ba3 {[%emt 0:12:53]} b6 {[%emt 0:02:02]} 17. d4 {[%emt 0:06:13]} e4 {[%emt 0:03:27]} 18. Ne5 {[%emt 0:00:33]} Qe8 {[%emt 0:00:07]} 19. Nc6 {[%emt 0:00:26]} Ra8 {[%emt 0:08:27]} 20. Qe2 {[%emt 0:07:40]} a6 {[%emt 0:02:28]} 21. f3 {[%emt 0:03:51]} axb5 {[%emt 0:02:00]} 22. Nxb5 {[%emt 0:00:22]} Qxc6 {[%emt 0:06:11]} 23. d5 {[%emt 0:00:08]} Nxd5 {[%emt 0:01:41]} 24. cxd5 {[%emt 0:00:40]} Bxd5 {[%emt 0:00:18]} 25. fxe4 {[%emt 0:01:40]} Bc4 {[%emt 0:07:49]} 26. exf5 {[%emt 0:01:46]} Qxb5 {[%emt 0:02:47]} 27. Rxb5 {[%emt 0:10:53]} Bxe2 {[%emt 0:00:10]} 28. Bd5+ {[%emt 0:00:07]} Kh8 {[%emt 0:00:39]} 0-1

[Event "7th Leer Open-A 2024"]
[Site "Leer"]
[Date "2024.10.31"]
[Round "2.2"]
[White "Kopylov, Daniel"]
[Black "Reuter, Julian-Frank"]
[Result "1-0"]
[ECO "B88"]
[WhiteElo "2369"]
[BlackElo "2101"]
[Annotator "RC"]
[PlyCount "67"]
[EventDate "2024.10.14"]
[EventType "swiss"]
[EventCountry "GER"]
[SourceTitle "playchess.com"]
[Source "ChessBase"]
[SourceQuality "1"]
[TimeControl "40/5400+30:900+30"]

1. e4 {[%emt 1:31:00]} c5 {[%emt 1:31:00]} 2. Nf3 {[%emt 0:00:30]} d6 {[%emt 0:00:30]} 3. d4 {[%emt 0:00:30]} cxd4 {[%emt 0:00:30]} 4. Nxd4 {[%emt 0:00:30]} Nf6 {[%emt 0:00:30]} 5. Nc3 {[%emt 0:00:00]} a6 {[%emt 0:00:00]} 6. Bc4 {[%emt 0:00:00]} e6 {[%emt 0:00:00]} 7. a4 {[%emt 0:00:00]} Be7 {[%emt 0:00:00]} 8. O-O {[%emt 0:00:00]} O-O {[%emt 0:00:00]} 9. Be3 {[%emt 0:00:00]} Qc7 {[%emt 0:00:00]} 10. Qe2 {[%emt 0:00:00]} Bd7 {[%emt 0:00:00]} 11. Rad1 {[%emt 0:00:00]} Nc6 {[%emt 0:00:00]} 12. Bb3 {[%emt 0:00:00]} Rac8 {[%emt 0:00:00]} 13. g4 {[%emt 0:00:00]} Na5 {[%emt 0:00:00]} 14. g5 {[%emt 0:00:00]} Ne8 {[%emt 0:00:00]} 15. f4 {[%emt 0:00:00]} Nc4 {[%emt 0:00:00]} 16. Bc1 {[%emt 0:00:00]} b5 {[%emt 0:00:00]} 17. axb5 {[%emt 0:00:00]} axb5 {[%emt 0:00:00]} 18. Ndxb5 {[%emt 0:00:00]} Qc5+ {[%emt 0:00:00]} 19. Nd4 {[%emt 0:00:00]} e5 {[%emt 0:00:00]} 20. Qxc4 {[%emt 0:00:00]} Qxc4 {[%emt 0:00:00]} 21. Bxc4 {[%emt 0:00:00]} exd4 {[%emt 0:00:00]} 22. Rxd4 {[%emt 0:00:00]} d5 {[%emt 0:00:00]} 23. Rxd5 {[%emt 0:00:00]} Be6 {[%emt 0:00:00]} 24. Bb3 {[%emt 0:00:00]} Bxd5 {[%emt 0:00:00]} 25. Nxd5 {[%emt 0:00:00]} Bc5+ {[%emt 0:00:00]} 26. Kg2 {[%emt 0:00:00]} Nc7 {[%emt 0:00:00]} 27. Nxc7 {[%emt 0:00:00]} Rxc7 {[%emt 0:00:00]} 28. Bd5 {[%emt 0:00:00]} g6 {[%emt 0:00:00]} 29. c3 {[%emt 0:00:00]} Kg7 {[%emt 0:00:00]} 30. b4 {[%emt 0:01:08]} Be7 {[%emt 0:00:00]} 31. Be3 {[%emt 0:02:22]} h6 {[%emt 0:00:00]} 32. h4 {[%emt 0:00:50]} f6 {[%emt 0:00:00]} 33. Bd4 {[%emt 0:00:08]} Kh7 {[%emt 0:00:00]} 34. b5 {[%emt 0:01:08]} 1-0

[Event "7th Leer Open-A 2024"]
[Site "Leer"]
[Date "2024.10.31"]
[Round "2.3"]
[White "Skembris, Simon Max"]
[Black "Van Osch, Mees"]
[Result "0-1"]
[ECO "B67"]
[WhiteElo "2119"]
[BlackElo "2362"]
[Annotator "RC"]
[PlyCount "72"]
[EventDate "2024.10.14"]
[EventType "swiss"]
[EventCountry "GER"]
[SourceTitle "playchess.com"]
[Source "ChessBase"]
[SourceQuality "1"]
[TimeControl "40/5400+30:900+30"]

1. e4 {[%emt 0:00:20]} c5 {[%emt 0:00:03]} 2. Nf3 {[%emt 0:00:05]} d6 {[%emt 0:00:03]} 3. d4 {[%emt 0:00:05]} cxd4 {[%emt 0:00:03]} 4. Nxd4 {[%emt 0:00:06]} Nf6 {[%emt 0:00:03]} 5. Nc3 {[%emt 0:00:09]} Nc6 {[%emt 0:00:03]} 6. Bg5 {[%emt 0:00:23]} Bd7 {[%emt 0:00:14]} 7. Qd2 {[%emt 0:01:10]} a6 {[%emt 0:00:03]} 8. O-O-O {[%emt 0:01:50]} e6 {[%emt 0:00:03]} 9. f3 {[%emt 0:00:56]} Be7 {[%emt 0:02:06]} 10. h4 {[%emt 0:00:41]} Nxd4 {[%emt 0:01:05]} 11. Qxd4 {[%emt 0:00:07]} h6 {[%emt 0:00:22]} 12. Be3 {[%emt 0:02:51]} b5 {[%emt 0:00:07]} 13. Kb1 {[%emt 0:03:26]} h5 {[%emt 0:00:27]} 14. Qd2 {[%emt 0:03:30]} Bc6 {[%emt 0:02:27]} 15. g3 {[%emt 0:08:15]} d5 {[%emt 0:01:12]} 16. e5 {[%emt 0:03:16]} Nd7 {[%emt 0:00:07]} 17. Bd4 {[%emt 0:01:11]} b4 {[%emt 0:05:58]} 18. Ne2 {[%emt 0:01:21]} Bb5 {[%emt 0:00:47]} 19. Nc1 {[%emt 0:07:21]} Qb8 {[%emt 0:03:58]} 20. f4 {[%emt 0:02:09]} g6 {[%emt 0:03:55]} 21. Bd3 {[%emt 0:03:49]} a5 {[%emt 0:01:38]} 22. Qe2 {[%emt 0:03:29]} Bxd3 {[%emt 0:00:46]} 23. Nxd3 {[%emt 0:01:33]} Qb5 {[%emt 0:01:02]} 24. Qf3 {[%emt 0:05:12]} a4 {[%emt 0:07:30]} 25. Nc1 {[%emt 0:03:22]} Bc5 {[%emt 0:04:06]} 26. Qe2 {[%emt 0:06:31]} Qxe2 {[%emt 0:06:47]} 27. Nxe2 {[%emt 0:00:08]} Ke7 {[%emt 0:00:11]} 28. Bxc5+ {[%emt 0:06:00]} Nxc5 {[%emt 0:00:06]} 29. Nd4 {[%emt 0:00:43]} Ne4 {[%emt 0:03:50]} 30. Rhg1 {[%emt 0:01:33]} Rhc8 {[%emt 0:00:26]} 31. Nf3 {[%emt 0:04:14]} a3 {[%emt 0:02:36]} 32. Ng5 {[%emt 0:03:12]} Nxg5 {[%emt 0:02:04]} 33. hxg5 {[%emt 0:05:16]} axb2 {[%emt 0:00:06]} 34. Rd4 {[%emt 0:01:05]} Ra4 {[%emt 0:20:36]} 35. a3 {[%emt 0:04:20]} Rxa3 {[%emt 0:00:51]} 36. Rxb4 {[%emt 0:01:01]} Ra1+ {[%emt 0:00:08]} 0-1

[Event "7th Leer Open-A 2024"]
[Site "Leer"]
[Date "2024.10.31"]
[Round "2.4"]
[White "Nedic, Dusan"]
[Black "Issing, Peter"]
[Result "1-0"]
[ECO "E21"]
[WhiteElo "2339"]
[BlackElo "2112"]
[Annotator "RC"]
[PlyCount "85"]
[EventDate "2024.10.14"]
[EventType "swiss"]
[EventCountry "GER"]
[SourceTitle "playchess.com"]
[Source "ChessBase"]
[SourceQuality "1"]
[TimeControl "40/5400+30:900+30"]

1. d4 {[%emt 0:00:30]} Nf6 {[%emt 0:01:03]} 2. c4 {[%emt 0:00:15]} e6 {[%emt 0:00:09]} 3. Nc3 {[%emt 0:00:41]} Bb4 {[%emt 0:00:17]} 4. Bd2 {[%emt 0:00:08]} O-O {[%emt 0:00:19]} 5. Nf3 {[%emt 0:00:12]} b6 {[%emt 0:02:26]} 6. g3 {[%emt 0:01:45]} Bb7 {[%emt 0:03:31]} 7. Bg2 {[%emt 0:00:11]} c5 {[%emt 0:00:58]} 8. a3 {[%emt 0:03:54]} Bxc3 {[%emt 0:00:59]} 9. Bxc3 {[%emt 0:00:05]} Ne4 {[%emt 0:00:53]} 10. Rc1 {[%emt 0:03:20]} Qc7 {[%emt 0:13:46]} 11. d5 {[%emt 0:03:51]} exd5 {[%emt 0:01:05]} 12. cxd5 {[%emt 0:00:06]} d6 {[%emt 0:00:23]} 13. Nh4 {[%emt 0:16:13]} Nxc3 {[%emt 0:01:47]} 14. Rxc3 {[%emt 0:00:17]} Nd7 {[%emt 0:00:35]} 15. O-O {[%emt 0:00:39]} Rae8 {[%emt 0:06:05]} 16. Re1 {[%emt 0:06:52]} Bc8 {[%emt 0:12:48]} 17. e4 {[%emt 0:02:24]} Ne5 {[%emt 0:04:18]} 18. f4 {[%emt 0:05:36]} Ng6 {[%emt 0:01:23]} 19. Nf3 {[%emt 0:05:03]} Bg4 {[%emt 0:02:15]} 20. h3 {[%emt 0:02:23]} Bxf3 {[%emt 0:00:05]} 21. Bxf3 {[%emt 0:00:08]} b5 {[%emt 0:00:28]} 22. Rce3 {[%emt 0:00:52]} Rb8 {[%emt 0:14:38]} 23. e5 {[%emt 0:01:13]} b4 {[%emt 0:01:27]} 24. h4 {[%emt 0:00:44]} bxa3 {[%emt 0:00:34]} 25. bxa3 {[%emt 0:00:06]} Qb6 {[%emt 0:04:49]} 26. Qc2 {[%emt 0:06:28]} Rfe8 {[%emt 0:05:08]} 27. h5 {[%emt 0:00:48]} Nf8 {[%emt 0:00:36]} 28. e6 {[%emt 0:01:04]} Re7 {[%emt 0:04:01]} 29. Kh1 {[%emt 0:01:59]} Qb2 {[%emt 0:03:44]} 30. Qxb2 {[%emt 0:04:44]} Rxb2 {[%emt 0:00:01]} 31. g4 {[%emt 0:01:57]} h6 {[%emt 0:04:32]} 32. g5 {[%emt 0:02:28]} hxg5 {[%emt 0:05:42]} 33. fxg5 {[%emt 0:00:07]} g6 {[%emt 0:00:25]} 34. Bg4 {[%emt 0:06:02]} gxh5 {[%emt 0:01:39]} 35. Bxh5 {[%emt 0:02:04]} fxe6 {[%emt 0:01:18]} 36. dxe6 {[%emt 0:00:16]} Nh7 {[%emt 0:00:40]} 37. Rd1 {[%emt 0:02:28]} Rb6 {[%emt 0:00:23]} 38. Rd5 {[%emt 0:00:24]} Kg7 {[%emt 0:00:29]} 39. Rf5 {[%emt 0:01:16]} c4 {[%emt 0:02:51]} 40. Rf7+ {[%emt 0:01:59]} Rxf7 {[%emt 0:00:39]} 41. Bxf7 {[%emt 0:15:08]} Rb3 {[%emt 0:06:42]} 42. Re1 {[%emt 0:00:00]} Rb8 {[%emt 0:00:14]} 43. Bh5 {[%emt 0:00:00]} 1-0

[Event "7th Leer Open-A 2024"]
[Site "Leer"]
[Date "2024.10.31"]
[Round "2.5"]
[White "Sommer, Justus"]
[Black "Lammers, Markus"]
[Result "1/2-1/2"]
[ECO "B01"]
[WhiteElo "2114"]
[BlackElo "2312"]
[Annotator "RC"]
[PlyCount "153"]
[EventDate "2024.10.14"]
[EventType "swiss"]
[EventCountry "GER"]
[SourceTitle "playchess.com"]
[Source "ChessBase"]
[SourceQuality "1"]
[TimeControl "40/5400+30:900+30"]

1. e4 {[%emt 0:00:16]} d5 {[%emt 0:00:58]} 2. exd5 {[%emt 0:00:15]} Nf6 {[%emt 0:00:03]} 3. d4 {[%emt 0:00:29]} Nxd5 {[%emt 0:00:04]} 4. c4 {[%emt 0:00:14]} Nb6 {[%emt 0:00:07]} 5. Nc3 {[%emt 0:01:20]} e5 {[%emt 0:00:08]} 6. dxe5 {[%emt 0:08:43]} Qxd1+ {[%emt 0:00:07]} 7. Nxd1 {[%emt 0:00:39]} Nc6 {[%emt 0:00:06]} 8. Ne3 {[%emt 0:11:19]} Nxe5 {[%emt 0:03:03]} 9. Bd2 {[%emt 0:03:32]} Be6 {[%emt 0:00:16]} 10. b3 {[%emt 0:03:22]} a5 {[%emt 0:20:18]} 11. Be2 {[%emt 0:05:49]} a4 {[%emt 0:02:33]} 12. Bc3 {[%emt 0:01:14]} Nc6 {[%emt 0:02:58]} 13. Nf3 {[%emt 0:06:17]} f6 {[%emt 0:22:52]} 14. O-O {[%emt 0:02:20]} Bc5 {[%emt 0:01:54]} 15. Nc2 {[%emt 0:02:03]} O-O {[%emt 0:02:21]} 16. Nfd4 {[%emt 0:01:57]} Nxd4 {[%emt 0:01:39]} 17. Bxd4 {[%emt 0:03:33]} Nd7 {[%emt 0:00:58]} 18. Bf3 {[%emt 0:12:16]} c6 {[%emt 0:00:23]} 19. Rfe1 {[%emt 0:03:05]} Rfe8 {[%emt 0:00:13]} 20. h3 {[%emt 0:06:46]} Bf5 {[%emt 0:02:29]} 21. b4 {[%emt 0:11:44]} Bf8 {[%emt 0:15:20]} 22. Rxe8 {[%emt 0:00:57]} Rxe8 {[%emt 0:00:02]} 23. Ne3 {[%emt 0:00:19]} Be4 {[%emt 0:00:44]} 24. Bxe4 {[%emt 0:02:09]} Rxe4 {[%emt 0:00:03]} 25. Bc3 {[%emt 0:00:28]} Nb6 {[%emt 0:10:20]} 26. c5 {[%emt 0:00:34]} Nc4 {[%emt 0:00:04]} 27. Re1 {[%emt 0:03:19]} Na3 {[%emt 0:01:53]} 28. f3 {[%emt 0:02:41]} Re8 {[%emt 0:03:44]} 29. Nc2 {[%emt 0:04:41]} Rxe1+ {[%emt 0:00:44]} 30. Nxe1 {[%emt 0:00:02]} Kf7 {[%emt 0:03:23]} 31. Kf2 {[%emt 0:00:14]} Ke6 {[%emt 0:00:22]} 32. Ke3 {[%emt 0:00:19]} Kd5 {[%emt 0:01:21]} 33. Kd3 {[%emt 0:00:44]} Be7 {[%emt 0:01:11]} 34. g3 {[%emt 0:01:12]} Bd8 {[%emt 0:00:54]} 35. Ng2 {[%emt 0:00:23]} Bc7 {[%emt 0:00:20]} 36. Ne3+ {[%emt 0:00:21]} Ke6 {[%emt 0:00:01]} 37. g4 {[%emt 0:01:23]} g6 {[%emt 0:01:57]} 38. Bb2 {[%emt 0:00:37]} Nb5 {[%emt 0:00:08]} 39. Nc4 {[%emt 0:01:11]} f5 {[%emt 0:01:21]} 40. Bg7 {[%emt 0:00:59]} fxg4 {[%emt 0:02:32]} 41. fxg4 {[%emt 0:15:41]} Bg3 {[%emt 0:01:25]} 42. Ne3 {[%emt 0:00:00]} Bf2 {[%emt 0:01:55]} 43. Ng2 {[%emt 0:00:00]} Bg3 {[%emt 0:02:56]} 44. Ne3 {[%emt 0:00:00]} Be1 {[%emt 0:00:57]} 45. Nc2 {[%emt 0:00:00]} Bf2 {[%emt 0:00:16]} 46. Ke4 {[%emt 0:00:00]} b6 {[%emt 0:02:14]} 47. cxb6 {[%emt 0:00:06]} Bxb6 {[%emt 0:00:06]} 48. Bh8 {[%emt 0:02:05]} Nd6+ {[%emt 0:00:27]} 49. Kd3 {[%emt 0:00:21]} Kd5 {[%emt 0:01:06]} 50. Nd4 {[%emt 0:01:42]} Ne4 {[%emt 0:02:25]} 51. Ne2 {[%emt 0:00:41]} Nf2+ {[%emt 0:00:13]} 52. Kc2 {[%emt 0:00:17]} Kc4 {[%emt 0:00:26]} 53. a3 {[%emt 0:00:18]} Nxh3 {[%emt 0:03:44]} 54. Nc3 {[%emt 0:00:07]} Nf2 {[%emt 0:00:44]} 55. Nxa4 {[%emt 0:00:28]} Bd4 {[%emt 0:01:01]} 56. Bxd4 {[%emt 0:00:15]} Kxd4 {[%emt 0:00:02]} 57. Nc5 {[%emt 0:00:24]} Nxg4 {[%emt 0:00:06]} 58. a4 {[%emt 0:01:38]} Kc4 {[%emt 0:01:14]} 59. a5 {[%emt 0:00:04]} Ne3+ {[%emt 0:00:57]} 60. Kd2 {[%emt 0:01:00]} Nd5 {[%emt 0:00:13]} 61. a6 {[%emt 0:00:09]} Kb5 {[%emt 0:02:14]} 62. a7 {[%emt 0:00:16]} Nb6 {[%emt 0:00:51]} 63. Kc3 {[%emt 0:00:53]} Na8 {[%emt 0:00:18]} 64. Ne6 {[%emt 0:00:17]} h6 {[%emt 0:00:17]} 65. Nd4+ {[%emt 0:00:36]} Kb6 {[%emt 0:00:08]} 66. Kd3 {[%emt 0:00:43]} Kc7 {[%emt 0:01:26]} 67. Ke4 {[%emt 0:00:31]} Kd6 {[%emt 0:00:01]} 68. b5 {[%emt 0:00:35]} c5 {[%emt 0:00:33]} 69. Ne2 {[%emt 0:00:16]} c4 {[%emt 0:01:12]} 70. Kd4 {[%emt 0:00:16]} Nb6 {[%emt 0:00:02]} 71. Nf4 {[%emt 0:00:49]} g5 {[%emt 0:00:22]} 72. Nd5 {[%emt 0:00:06]} Na8 {[%emt 0:00:06]} 73. Kxc4 {[%emt 0:00:37]} h5 {[%emt 0:01:24]} 74. Kd4 {[%emt 0:00:07]} h4 {[%emt 0:00:13]} 75. Ne3 {[%emt 0:00:30]} h3 {[%emt 0:00:25]} 76. Ng4 {[%emt 0:00:08]} Kc7 {[%emt 0:00:21]} 77. Ke4 {[%emt 0:00:27]} 1/2-1/2